Cogmind - Beta 15 @@@ ROGUE MODE // 2025.06.14 @ 19:33:55 Player: GodofBeaverz Result: Destroyed by G-34 Mercenary with Small Laser Performance ------------- Evolutions (0) 0 Regions Visited (2) 400 Robots Destroyed (13) 65 Value Destroyed (313) 313 Prototype IDs (0) 0 Alien Tech Used (0) 0 Bonus (0) 0 TOTAL SCORE: 778 Bonus ------- None Cogmind --------- Core Integrity 0/250 Matter 277/300 Energy 100/100 System Corruption 0% Temperature Cool (6) Movement Hovering (240) Ox2 Location -10/Mines Parts ------- > --- POWER (1) -------- (None) > --- PROPULSION (2) --- Backup Propulsion I > --- UTILITY (2) ------ Medium Storage Unit Backup Plating I > --- WEAPON (2) ------- Rocket Launcher > --- INVENTORY (10) --- Light Ion Engine Heat Sink Small Storage Unit Medium Battery (150) Medium Battery (150) Large Battery (200) Large Matter Pod (0) Experimental Sensor Array Mining Laser Signal Generator Peak State ------------ > --- POWER ------------ Light Ion Engine > --- PROPULSION ------- Light Treads Light Treads > --- UTILITY ---------- Small Storage Unit Improved Terrain Scanner > --- WEAPON ----------- Small Laser Small Laser > --- INVENTORY -------- Light Ion Engine Assault Rifle Mining Laser [Rating: 9] Favorites ----------- Power Light Nuclear Core Engine Light Ion Engine Power Core Light Nuclear Core Propulsion Light Treads Treads Light Treads Hover Unit Backup Propulsion I Utility Medium Storage Unit Device Improved Terrain Scanner Storage Medium Storage Unit Processor Targeting Computer Protection Backup Plating I Weapon Assault Rifle Energy Gun Small Laser Ballistic Gun Assault Rifle Launcher Rocket Launcher Special Weapon Mining Laser Build | -11 -10 -10 ------- Run | Yrd Mat Min Slots Evolved . | . . . Power . | . . . Propulsion . | . . . Utility . | . . . Weapon . | . . . Parts Attached 18 | 9 8 1 Power 2 | 1 1 . Engine 1 | 1 . . Core 1 | . 1 . Reactor . | . . . Propulsion 2 | 2 . . Treads 2 | 2 . . Leg . | . . . Wheel . | . . . Hover . | . . . Flight . | . . . Utility 8 | 3 5 . Device 2 | 2 . . Storage 5 | 1 4 . Processor 1 | . 1 . Hackware . | . . . Protection . | . . . Artifact . | . . . Weapon 6 | 3 2 1 Energy Gun 2 | 2 . . Energy Cannon . | . . . Ballistic Gun 2 | 1 1 . Ballistic Cannon . | . . . Launcher 1 | . . 1 Special Weapon 1 | . 1 . Impact Weapon . | . . . Slashing Weapon . | . . . Piercing Weapon . | . . . Special Melee Weapon . | . . . Unidentified Prototypes . | . . . Parts Lost 8 | . 8 . Power 2 | . 2 . Propulsion 2 | . 2 . Utility 2 | . 2 . Weapon 2 | . 2 . Highest Loss Streak 4 | . 4 . To Critical Strikes . | . . . Average Backups 6 | 2 4 8 Power . | . 1 1 Propulsion . | . . . Utility 4 | . 2 6 Weapon 1 | . 1 1 Tool/Special . | . . . Unused Backups 5 | . . 5 Power 1 | . . 1 Propulsion . | . . . Utility 3 | . . 3 Weapon 1 | . . 1 Tool/Special . | . . . Average Slot Usage (%) 74 | . 90 56 Engine 1 | . 2 . Core 5 | . 10 . Treads 12 | . 24 . Hover 7 | . 2 14 Storage 15 | . 17 14 Processor 1 | . 2 . Protection 7 | . 2 14 Energy Gun 2 | . 4 . Ballistic Gun 8 | . 16 . Launcher 6 | . . 13 Special Weapon 2 | . 3 . Peak Build Rating 9 | 9 9 7 Average Rating 6 | 4 8 5 On Entrance 3 | . 6 3 Naked Turns . | . . . Heaviest Build 20 | 11 20 15 Greatest Support 40 | 40 40 6 Greatest Overweight (x) 3 | . 3 2 Average Overweight (x) 1 | . . 1 Largest Inventory Capacity 10 | 8 10 10 Average Capacity 9 | 7 8 10 Most Carried 10 | 5 8 10 Average Carried 6 | 2 4 8 Final Capacity 10 | 8 10 10 Final Carried 10 | 4 8 10 Class Distribution -------------------- 100% | Mutant Dominant Class ---------------- Mutant | -10/Materials Mutant | -10/Mines Resources | -11 -10 -10 ----------- Run | Yrd Mat Min Matter Collected 530 | 270 223 37 Remotely . | . . . Salvage Created 360 | 30 287 43 Parts 29 | 5 20 4 Haulers Intercepted . | . . . Recyclers Shooed . | . . . Parts Field Recycled . | . . . Retrieved Matter . | . . . Parts Self-Destructed . | . . . Prevented . | . . . Kills | -11 -10 -10 ------- Run | Yrd Mat Min Combat Hostiles Destroyed 9 | . 8 1 Guns 6 | . 6 . Cannons 2 | . 2 . AOE 1 | . . 1 Classes Destroyed 6 | 1 5 . Worker 1 | . 1 . Builder 1 | . 1 . Tunneler 1 | 1 . . Operator 1 | . 1 . Swarmer 2 | . 2 . Grunt 7 | . 6 1 Best Kill Streak 5 | 1 5 1 Combat Bots Only 4 | . 4 1 Max Kills in Single Turn 1 | 1 1 1 Gunslinging . | . . . Exploded 1 | . . 1 Melee . | . . . Uniques/NPCs Destroyed . | . . . Combat | -11 -10 -10 -------- Run | Yrd Mat Min Hostile Shots Fired 105 | . 103 2 Missed 33 | . 32 1 Hits 72 | . 71 1 Projectile 72 | . 71 1 Critical Strikes 1 | . 1 . Damage Taken 929 | . 918 11 Core 251 | . 240 11 Absorbed by Shields . | . . . Core Remaining (%) 100 | 100 . . Volleys Fired 47 | 1 45 1 Largest 2 | 2 2 1 Hottest 120 | 80 120 33 Shots Fired 85 | 2 82 1 Gun 80 | 2 78 . Cannon . | . . . Launcher 1 | . . 1 Special 4 | . 4 . Kinetic 54 | . 54 . Thermal 30 | 2 28 . Explosive 1 | . . 1 Electromagnetic . | . . . Robot Hit Streak 9 | 1 9 2 Robot Miss Streak 4 | 1 4 . Penetration Max . | . . . Secondary Targets . | . . . Shots Hit Robots 53 | 1 51 1 Core Hits 23 | 1 19 3 Critical Kills . | . . . Critical Parts Destroyed . | . . . Critical Strikes . | . . . Melee Attacks . | . . . Impact . | . . . Slashing . | . . . Piercing . | . . . Sneak Attacks . | . . . Combat Hostiles . | . . . Follow-up Attacks . | . . . Damage Inflicted 841 | 23 696 122 Guns 623 | 23 600 . Cannons . | . . . Explosions 122 | . . 122 Melee . | . . . Ramming . | . . . Kinetic 398 | . 398 . Thermal 321 | 23 298 . Explosive 122 | . . 122 Electromagnetic . | . . . Impact . | . . . Slashing . | . . . Piercing . | . . . Highest Corruption . | . . . Average Corruption . | . . . Corruption Purged . | . . . Corruption Blocked . | . . . Overload Shots . | . . . Overflow Damage 18 | . 18 . Projectiles 18 | . 18 . Explosions . | . . . Melee . | . . . Knockbacks . | . . . Impact . | . . . Kinetic . | . . . Secondary . | . . . Self-Inflicted Damage . | . . . Shots . | . . . Rammed . | . . . Targets Rammed . | . . . Kicked . | . . . Crushed . | . . . Highest Temperature 207 | 18 207 . Average Temperature 69 | 12 71 . Received Heat Transfer 429 | . 423 6 Siege Activations . | . . . Martial Activations . | . . . Shielding Activations . | . . . Robots Disrupted . | . . . Combat Hostiles . | . . . Robots Corrupted . | . . . Combat Hostiles . | . . . Parts Fried . | . . . Impact Corruptions . | . . . Robots Melted . | . . . Combat Hostiles . | . . . Parts Melted . | . . . Heat Transferred 700 | 50 650 . Parts Sabotaged . | . . . Parts Stolen . | . . . Parts Stripped . | . . . Power Chain Reactions . | . . . Alert | -11 -10 -10 ------- Run | Yrd Mat Min Maximum Alert Level . | . . . Low Security (%) 100 | 100 100 100 Level 1 . | . . . Level 2 . | . . . Level 3 . | . . . Level 4 . | . . . Level 5 . | . . . High Security . | . . . Max Security . | . . . Peak Influence 122 | 5 122 14 Initial 14 | . . 14 Average 19 | . 38 . Influence Increases 299 | 5 252 42 Destroy 0b10 Robot/C 180 | . 160 20 Destroy 0b10 Robot/NC 20 | 5 15 . Destroy Leader 50 | . 40 10 Allied During Kill 2 | . . 2 Successful Hack 6 | . 6 . Destroy Structure 11 | . 1 10 Lose Combat Pursuer 30 | . 30 . Influence Decreases 257 | 5 214 38 Entered New Map 24 | . . 24 Time Decay 168 | 5 149 14 Lost Part 65 | . 65 . Squads Dispatched 5 | . 4 1 Investigation 1 | . 1 . Extermination . | . . . Reinforcement 3 | . 3 . Assault 1 | . . 1 Garrison . | . . . Intercept . | . . . Searches Triggered . | . . . Construction Impeded . | . . . Haulers Reinforced . | . . . Active Scanning Responses . | . . . Cargo Convoy Interrupts . | . . . Stealth | -11 -10 -10 --------- Run | Yrd Mat Min Distress Signals 2 | . 2 . Communications Jammed . | . . . Distress Signals . | . . . Times Spotted 28 | . 23 5 Peak Tracking Total 7 | . 7 4 Tactical Retreats 2 | . 2 . Traps | -11 -10 -10 ------- Run | Yrd Mat Min Traps Triggered 1 | . 1 . Indirectly . | . . . Trap Hack Attempts . | . . . Triggered . | . . . Disarmed . | . . . Reprogrammed . | . . . Reused . | . . . Traps Extracted . | . . . Installed . | . . . Triggered . | . . . Machines | -11 -10 -10 ---------- Run | Yrd Mat Min Machines Disabled . | . . . Max in Single Turn . | . . . Machines Repaired . | . . . Machines Dismantled . | . . . Machines Sabotaged . | . . . Overloaded Fab Kills . | . . . Hacking | -11 -10 -10 --------- Run | Yrd Mat Min Machines Accessed 2 | . 2 . Terminals . | . . . Fabricators . | . . . Repair Stations 1 | . 1 . Recycling Units 1 | . 1 . Scanalyzers . | . . . Garrison Access . | . . . Total Hacks 4 | . 4 . Successful 2 | . 2 . Failed 2 | . 2 . Catastrophic . | . . . Database Lockouts . | . . . Manual . | . . . Terminals . | . . . Fabricators . | . . . Repair Stations 2 | . 2 . Recycling Units 2 | . 2 . Scanalyzers . | . . . Garrison Access . | . . . Terminal Hacks . | . . . Fabricator Hacks . | . . . Repair Station Hacks 1 | . 1 . Refit 1 | . 1 . Recycling Unit Hacks 1 | . 1 . Retrieve Components 1 | . 1 . Scanalyzer . | . . . Garrison Access Hacks . | . . . Unauthorized Hacks . | . . . Terminals . | . . . Fabricators . | . . . Repair Stations . | . . . Recycling Units . | . . . Scanalyzers . | . . . Garrison Access . | . . . Data Cores Recovered . | . . . Used . | . . . Hacking Detections 1 | . 1 . Full Trace Events . | . . . Feedback Events . | . . . Feedback Blocked . | . . . Robot Schematics Acquired . | . . . Robots Built . | . . . Authchips . | . . . Time . | . . . Total Robot Build Rating . | . . . Part Schematics Acquired . | . . . Parts Built . | . . . Authchips . | . . . Time . | . . . Total Part Build Rating . | . . . Parts Repaired . | . . . Time . | . . . Parts Recycled . | . . . Recycled Matter . | . . . Retrieved Matter . | . . . Retrieved Components 7 | . 7 . Parts Scanalyzed . | . . . Part Schematics Acquired . | . . . Parts Damaged . | . . . Bothacking | -11 -10 -10 ------------ Run | Yrd Mat Min Used RIF Installer . | . . . Robots Hacked . | . . . Non-combat . | . . . Combat . | . . . Robot Hacks Applied . | . . . Relay Couplers Released . | . . . Fabnet Peak Effective % . | . . . Robots Rewired . | . . . Allies Hacked . | . . . Hacks Repelled . | . . . Allies | -11 -10 -10 -------- Run | Yrd Mat Min Total Allies 1 | . . 1 Largest Group 1 | . . 1 Highest-Rated Group 31 | . . 31 Highest-Rated Ally 31 | . . 31 Total Orders . | . . . Ally Attacks . | . . . Total Damage . | . . . Kills . | . . . Allies Corrupted . | . . . Allies Melted . | . . . Intel | -11 -10 -10 ------- Run | Yrd Mat Min Active Infowar (turns) 71 | 7 64 . Terrain 69 | 5 64 . Seismic 2 | 2 . . Robot Analysis Total . | . . . Derelict Logs Recovered . | . . . Drone Launches . | . . . Drone Recoveries . | . . . Exploration | -11 -10 -10 ------------- Run | Yrd Mat Min Turns Passed 1130 | 99 550 481 Spaces Moved 462 | 59 207 196 Core 17 | 17 . . Treads 219 | 42 177 . Legs . | . . . Wheels . | . . . Hover 226 | . 30 196 Flight . | . . . Fastest Speed 50 | 50 160 160 Average Speed 199 | 128 181 239 Slowest Speed 340 | 160 340 240 Overloaded Moves . | . . . Propulsion Burnouts . | . . . Robots Hopped . | . . . Potential Cave-ins . | . . . Cave-ins Triggered . | . . . Exploration Rate (%) 35 | 4 54 48 Regions Visited 2 Branch Regions 1 Pre-discovered Areas . | . . . Known Exits Taken . | . . . Unknown Exits Taken 2 | 1 1 . Scrap Searched 1 | . . 1 Spaces Dug . | . . . Terrain Destroyed 12 | . . 12 Melee . | . . . Projectile . | . . . AOE 12 | . . 12 Terrain Rammed . | . . . Walls Destroyed . | . . . Machines Disabled . | . . . Actions | -11 -10 -10 --------- Run | Yrd Mat Min Total 579 | 80 290 209 Wait 22 | . 14 8 Move 460 | 58 206 196 Hop . | . . . Pick Up 24 | 11 10 3 Fast Attach . | . . . Attach 12 | 7 4 1 Detach . | . . . Swap 10 | 2 8 . Drop 4 | 1 3 . Fire 47 | 1 45 1 Melee . | . . . Ram . | . . . Kick . | . . . Crush . | . . . Escape Stasis . | . . . Rewire . | . . . Trap . | . . . Miscellaneous . | . . . Route ------- -11/Scrapyard -10/Materials (discovered 3 exits: [*Mat] / [*Min] / [*Sub]) -10/Mines History --------- Turn | Location | Event 10 | -11/Scrapyard | Discovered new exit (range 16) 100 | -11/Scrapyard | Entered Materials 266 | -10/Materials | Discovered new exit (range 15) 308 | -10/Materials | Build established: Mutant 390 | -10/Materials | Discovered new exit (range 14) 448 | -10/Materials | Core integrity fell below 50% 536 | -10/Materials | Core integrity fell below 20% 619 | -10/Materials | Discovered new exit (range 10) 650 | -10/Materials | Entered Mines 657 | -10/Mines | Received a Rocket Launcher from a helpful Derelict 679 | -10/Mines | Lost 4 parts (1p1n2w) 887 | -10/Mines | Found a damaged Exp. Sensor Array with a note attached 892 | -10/Mines | Found Prototype Device 1045 | -10/Mines | Met a Derelict testing a Signal Generator 1056 | -10/Mines | Found Signal Generator 1131 | -10/Mines | Destroyed by G-34 Mercenary with Small Laser Last Messages --------------- 01048_ Signal Generator broadcasts a burst of procedurally generated transmissions. 01048_ ALERT: Intercepting significant anomalous signal. Dispatching assault force. 01049_ 5Q-JHK(g): "Okay, I guess that means it works. Now let's get out of here!" 01051_ Signal Generator broadcasts a burst of procedurally generated transmissions. 01051_ ALERT: Intercepting significant anomalous signal. Redirecting assault force. 01054_ K-01 Serf collects debris. 01056_ Acquired Signal Generator. 01057_ K-01 Serf collects debris. 01129_ C-30 ARC: "LOCATED POTENTIAL SOURCE OF ANOMALOUS SIGNAL. NEUTRALIZING." 01129_ C-30 ARC bursts open, deploying its payload. 01129_ G-47 Trooper unfolds itself. 01129_ G-34 Mercenary unfolds itself. 01131_ G-47 Trooper destroyed. Map ----- +----------------------------------------------------+ | ?????????????# #?## #???????????? | | ?????????????## #???## #???????????? | | ??????????????###?????# #???????????? | | ?????????????###??????# #???????????? | | ?????????????# ####??# #???????????? | | ?????????????# ##?## #???????????? | | ?????????????# #??## ##??????????? | | ??????????????# ##?## #??????????? | | ???????????????# ### #??????????? | | ???????????????# ## #??????????? | | ?????????#####?## ## ##??????????? | | ????????## ##?# ## #???????????? | | ????##### #?# #### #???????????? | | ???## """ ### ##?## ##??????????? | | ???# """ #?## ##?????????? | | ???# """ ### ##????????? | | ???# ### ### #????????? | | ???## #?####?# #????????? | | ????## ## ##?????## ##????????? | | ?????# #### #??????#### ###?????????? | | ?????# #??# k#?????????# #???????????? | | ?????# ##??# ##????????# ##??????????? | | ?????####??## ##???????# #??????????? | | ???????????# #???????# #??????????? | | ???????????# #### g# #??????????? | | ???????????## @ ==g%g[m!#??????????? | | ???????????## ##### # #??????????? | | ???????????# #?????????# =#??????????? | | ???????????# g #?????????# #??????????? | | ???????????## ##????????# #??????????? | | ????????????# ##???????# #??????????? | | ????????????# ###?????# #??????????? | | ????????????# #?????# #??????????? | | ????????????## #????# #??????????? | | ?????????????## ##????# #??????????? | | ??????????????########?????# #??????????? | | ??????????????????????????? ??????????? | | ??????????????????????????? ??????????? | | ??????????????????????????? ??????????? | | ??????????????????????????? """??????????? | | ??????????????????????????? """??????????? | | ??????????????????????????? ?????????????? | | ?????????????????????????????????????????? | | ?????????????????????????????????????????? | | ?????????????????????????????????????????? | | | | | | | | | | | +----------------------------------------------------+ Best States ------------- Heat Dissipation 25 Energy Generation 14 Energy Capacity 360 Matter Stores 300 Matter Capacity 300 Sight Range 16 Terrain Scan Range 16 Terrain Scan Density 10 Armor Coverage 80 Evasion (%) 50 Targeting Accuracy 5 Recoil Reduction 2 Item Schematics ----------------- None Robot Schematics ------------------ None Fabricated ------------ Nothing Repaired ---------- Nothing Alien Tech Used ----------------- None Achievements -------------- None Challenges ------------ None Game ------ Seed VisualTransportRifle Manual? 0 Play Time 00:13:59 Cumulative 7.0 hours Start 2025.06.14 @ 19:17:14 End 2025.06.14 @ 19:33:55 Sessions 1 Manual Loads 0 Difficulty Rogue Special Mode None Game No. 4 Rogue 4 Adventurer 0 Explorer 0 Win Type - Total 0 Types 0/0/0/0/0/0/0/0/0/0 Lore% 3 Gallery% 7 Achievement% 7 Wizard Run 0 Options --------- Layout 1 ASCII 0 Keyboard 0 Movement Mouse Keybinds 0 Fullscreen 2 Font 32/SmallcapsGlow Map View 50x35 Zoom Use 0% Tactical HUD 1 Map Filters NONE Filters NONE Steam 1 RUN: 0a575a0e-092a-41d2-85b8-b8a00b858c39